bitfinex-derivatives/quotes_BTCF0:USTF0_20250218
["timestamp","ask_amount","ask_price","bid_price","bid_amount"]
[1739913752769,0.005,95195.0,95194.0,0.2101981]
[1739913752963,0.005,95195.0,95193.0,0.3618]
[1739913753566,0.2101981,95194.0,95193.0,0.3618]
[1739913753769,0.2101981,95194.0,95193.0,0.3608]
[1739913753972,0.2101981,95194.0,95193.0,0.3618]
[1739913753973,0.005,95194.0,95193.0,0.3618]
[1739913754176,0.1216,95194.0,95193.0,0.3618]
[1739913755567,0.1166,95194.0,95193.0,0.3618]
[1739913756168,0.1216,95194.0,95193.0,0.3618]
[1739913757870,0.3317981,95194.0,95193.0,0.3618]
[1739913758067,0.2151981,95194.0,95193.0,0.3618]
[1739913758667,0.005,95194.0,95193.0,0.3618]
[1739913759075,0.005,95194.0,95193.0,0.5720003]
[1739913762073,0.1,95200.0,95193.0,0.3618]
[1739913762274,0.1,95200.0,95199.0,0.570987]
[1739913762573,0.1877173,95204.0,95203.0,0.2101782]
[1739913763378,0.00015759,95213.0,95203.0,0.5417705]
[1739913763580,0.21878982,95219.0,95218.0,0.2101451]
[1739913763783,0.21878982,95219.0,95218.0,0.5709451]
[1739913764478,0.21878982,95219.0,95218.0,0.3608]
[1739913765681,0.21878982,95219.0,95218.0,0.3618]
[1739913766673,0.2209557,95225.0,95218.0,0.3618]
[1739913766979,0.2101415,95220.0,95218.0,0.3618]
[1739913767383,0.0108257,95225.0,95218.0,0.3618]
[1739913767581,0.00015728,95228.0,95223.0,0.2101336]
[1739913767885,0.00015728,95228.0,95227.0,0.3608]
[1739913768086,0.22099452,95228.0,95227.0,0.3608]
[1739913768382,0.22099452,95228.0,95218.0,0.001]
[1739913768383,0.21028028,95228.0,95219.0,0.3608]
[1739913769085,0.32684028,95228.0,95219.0,0.3608]
[1739913769284,0.00015728,95228.0,95227.0,0.35922142]
[1739913769788,0.01108644,95228.0,95227.0,0.35922142]
[1739913769991,0.00015728,95228.0,95227.0,0.83424662]
[1739913771382,0.00015728,95228.0,95227.0,0.83524662]
[1739913772493,0.01112322,95228.0,95227.0,0.83524662]
[1739913774289,0.01112322,95228.0,95227.0,0.83424662]
[1739913775899,0.01112322,95228.0,95227.0,0.62412142]
[1739913777291,0.01112322,95228.0,95227.0,0.83424662]
[1739913781694,0.01112322,95228.0,95227.0,0.62412142]
[1739913781904,0.01112322,95228.0,95227.0,0.35922142]
[1739913784190,0.01112322,95228.0,95227.0,0.56934662]
[1739913784606,0.01112322,95228.0,95227.0,0.35922142]
[1739913784797,0.01112322,95228.0,95212.0,0.3608]
[1739913784798,0.37192322,95228.0,95212.0,0.3608]
[1739913784992,0.2101628,95210.0,95202.0,0.1743705]
[1739913785498,0.3608,95220.0,95202.0,0.1743705]
[1739913785807,0.2101609,95211.0,95202.0,0.1743705]
[1739913786003,0.5235628,95210.0,95202.0,0.1743705]
[1739913786207,0.3134,95210.0,95204.0,0.2101759]
[1739913786992,0.5235628,95210.0,95202.0,0.1743705]
[1739913787196,0.8843628,95210.0,95202.0,0.1743705]
[1739913787607,0.2102051,95191.0,95187.0,0.3608]
[1739913788110,0.2092051,95191.0,95187.0,0.3608]
[1739913788999,0.12720878,95199.0,95187.0,0.5710124]
[1739913789197,0.2101985,95194.0,95187.0,0.2102124]
[1739913789399,0.3041,95193.0,95180.0,0.00015759]
[1739913789601,0.5143014,95193.0,95184.0,0.2102189]
[1739913789905,0.3041,95193.0,95185.0,0.2102176]
[1739913791299,0.3051,95193.0,95185.0,0.2102176]
[1739913791700,0.2102041,95192.0,95180.0,0.33759527]
[1739913791905,0.2102041,95192.0,95180.0,0.12736637]
[1739913792205,0.2102041,95192.0,95183.0,0.2102202]
[1739913792907,0.2102069,95190.0,95180.0,0.00015759]
[1739913794198,0.2102268,95181.0,95180.0,0.00015759]
[1739913794599,0.5710268,95181.0,95180.0,0.00015759]
[1739913795607,0.3608,95181.0,95180.0,0.00115759]
[1739913795808,0.00015759,95200.0,95180.0,0.36195759]
[1739913795997,0.01374881,95194.0,95189.0,0.2102091]
[1739913796203,0.3608,95194.0,95180.0,0.00115759]
[1739913796405,0.2102268,95181.0,95180.0,0.00115759]
[1739913796599,0.5710268,95181.0,95180.0,0.00115759]
[1739913797498,0.5710268,95181.0,95180.0,0.00015759]
[1739913798214,0.5710268,95181.0,95180.0,0.00115759]
[1739913801814,0.2935,95188.0,95180.0,0.00115759]
[1739913802109,0.37456607,95194.0,95180.0,0.00115759]
[1739913802317,0.01376607,95194.0,95187.0,0.2102116]
[1739913802610,0.00015759,95200.0,95191.0,0.2102037]
[1739913802815,0.210197,95195.0,95186.0,0.2102143]
[1739913803208,0.12736637,95200.0,95181.0,1.20828]
[1739913803408,0.33755197,95200.0,95189.0,0.2102074]
[1739913803613,0.33755197,95200.0,95181.0,1.2068]
[1739913803808,0.33755197,95200.0,95189.0,0.2102082]
[1739913804003,0.33755197,95200.0,95181.0,1.2068]
[1739913804004,0.12720878,95199.0,95181.0,0.31524215]
[1739913804314,0.12720878,95199.0,95174.0,0.1743705]
[1739913804315,0.2102288,95181.0,95174.0,0.1743705]
[1739913804515,0.14117651,95200.0,95174.0,0.1743705]
[1739913804719,0.14117651,95200.0,95180.0,0.3608]
[1739913805012,0.01496773,95200.0,95181.0,0.9089]
[1739913805512,0.01496773,95200.0,95181.0,0.90905759]
[1739913805712,0.01496773,95200.0,95199.0,0.210187]
[1739913806522,0.00015759,95200.0,95199.0,0.210187]
[1739913806708,0.3608,95217.0,95198.0,0.3174]
[1739913807017,0.3608,95217.0,95214.0,0.2101533]
[1739913807202,0.3608,95217.0,95215.0,0.5625]
[1739913807402,0.3608,95217.0,95215.0,0.7726503]
[1739913807604,0.37440927,95217.0,95215.0,0.7726503]
[1739913808310,0.3608,95217.0,95215.0,0.7726503]
[1739913808511,0.3608,95217.0,95215.0,0.5625]
[1739913808811,0.0132428,95218.0,95215.0,0.5625]
[1739913809011,0.2101401,95221.0,95215.0,0.5625]
[1739913809219,0.2101459,95218.0,95215.0,0.5625]
[1739913809814,0.00015759,95226.0,95215.0,0.5625]
[1739913810019,0.003,95217.0,95215.0,0.7726514]
[1739913810318,0.00015759,95226.0,95222.0,0.2101355]
[1739913810516,0.00015759,95226.0,95224.0,0.2101319]
[1739913811412,0.00215759,95226.0,95224.0,0.2101319]
[1739913812322,0.00215759,95226.0,95224.0,0.5709319]
[1739913812922,0.00015759,95226.0,95224.0,0.5709319]
[1739913813718,0.3608,95237.0,95224.0,0.5351705]
[1739913813923,0.3608,95256.0,95232.0,0.3608]
[1739913813924,0.2100815,95247.0,95232.0,0.3608]
[1739913814122,0.3608,95256.0,95237.0,0.210101]
[1739913814317,0.2100861,95245.0,95237.0,0.210101]
[1739913814623,0.2100928,95242.0,95237.0,0.210101]
[1739913815326,0.2100944,95241.0,95237.0,0.210101]
[1739913816126,0.00015698,95249.0,95233.0,0.5357]
[1739913816421,0.210101,95238.0,95237.0,0.001]
[1739913816724,0.3608,95242.0,95233.0,0.5357]
[1739913816928,0.2091098,95234.0,95233.0,0.5357]
[1739913817421,0.209112,95233.0,95232.0,0.1743705]
[1739913818823,0.2101164,95231.0,95230.0,0.0001575]
[1739913819022,0.2091164,95231.0,95230.0,0.0001575]
[1739913819619,0.2081164,95231.0,95230.0,0.0001575]
[1739913819830,0.5689164,95231.0,95230.0,0.0001575]
[1739913820014,0.5709164,95231.0,95230.0,0.0011575]
[1739913820624,0.5689164,95231.0,95230.0,0.0001575]
[1739913820819,0.5719164,95231.0,95230.0,0.0011575]
[1739913822430,0.5729164,95231.0,95230.0,0.0011575]
[1739913822623,0.3648,95231.0,95207.0,0.3036]
[1739913822824,0.2101672,95208.0,95207.0,0.3036]
[1739913823018,0.12720878,95220.0,95201.0,0.2519]
[1739913823318,0.14071083,95220.0,95207.0,0.2101691]
[1739913823632,0.2101431,95219.0,95207.0,0.2101691]
[1739913823925,0.2101738,95205.0,95204.0,0.0001575]
[1739913826131,0.2141738,95205.0,95204.0,0.0001575]
[1739913828824,0.004,95205.0,95204.0,0.5711335]
[1739913829029,0.37411951,95222.0,95204.0,0.3609575]
[1739913829224,0.37411951,95222.0,95205.0,0.0525429]
[1739913829524,0.37411951,95222.0,95217.0,0.2101455]
[1739913830133,0.12720878,95230.0,95222.0,0.2101363]
[1739913830521,0.12720878,95232.0,95222.0,0.2101363]
[1739913830925,0.00056001,95234.0,95222.0,0.2101363]
[1739913831127,0.12720878,95240.0,95222.0,0.2101363]
[1739913831327,0.12720878,95240.0,95232.0,0.2101142]
[1739913831933,0.2101032,95237.0,95232.0,0.2101142]
[1739913832324,0.2101055,95236.0,95232.0,0.2101142]
[1739913832533,0.2101078,95235.0,95232.0,0.2101142]
[1739913832832,0.00015698,95242.0,95232.0,0.5876986]
[1739913833134,0.12720878,95260.0,95243.0,0.2100892]
[1739913833326,0.12720878,95253.0,95242.0,0.1743705]
[1739913833633,0.2100816,95247.0,95242.0,0.1743705]
[1739913833936,0.01354568,95247.0,95242.0,0.1743705]
[1739913834134,0.2959,95252.0,95242.0,0.1743705]
[1739913834436,0.2959,95252.0,95246.0,0.210083]
[1739913835023,0.2959,95252.0,95251.0,0.3608]
[1739913835425,0.51944484,95252.0,95251.0,0.3608]
[1739913836233,0.51944484,95252.0,95251.0,0.3618]
[1739913837329,0.30937474,95252.0,95251.0,0.3618]
[1739913837529,0.2959,95252.0,95251.0,0.3618]
[1739913838238,0.30917058,95252.0,95251.0,0.3618]
[1739913840947,0.30917058,95252.0,95251.0,0.001]
[1739913841436,0.51924068,95252.0,95251.0,0.001]
[1739913842443,0.30917058,95252.0,95251.0,0.001]
[1739913842948,0.01327058,95252.0,95251.0,0.2110723]
[1739913843139,0.3158,95259.0,95251.0,0.001]
[1739913843345,0.11632,95258.0,95251.0,0.001]
[1739913843545,0.11632,95258.0,95253.0,0.2100678]
[1739913843759,0.5258547,95259.0,95253.0,0.2100678]
[1739913844263,0.2100591,95257.0,95251.0,0.001]
[1739913844561,0.2100591,95257.0,95251.0,0.2110715]
[1739913844761,0.01374393,95259.0,95258.0,0.2100569]
[1739913844955,0.2198458,95275.0,95253.0,0.2582]
[1739913845154,0.11632,95271.0,95266.0,0.2100392]
[1739913845355,0.37458313,95272.0,95268.0,0.2100333]
[1739913845657,0.01378313,95272.0,95268.0,0.2100333]
[1739913845857,0.323,95278.0,95263.0,0.3608]
[1739913845858,0.2198458,95271.0,95269.0,0.2100321]
[1739913847060,0.2198458,95271.0,95266.0,0.001]
[1739913847469,0.2100318,95270.0,95266.0,0.001]
[1739913847963,0.2100351,95268.0,95266.0,0.001]
[1739913848469,0.2100502,95261.0,95260.0,0.0001575]
[1739913848665,0.2100863,95245.0,95238.0,0.3608]
[1739913848864,0.12720878,95250.0,95238.0,0.3608]
[1739913849165,0.12720878,95250.0,95232.0,0.1754105]
[1739913849166,0.2090988,95239.0,95232.0,0.1754105]
[1739913849359,0.2090988,95239.0,95232.0,0.1743705]
[1739913850569,0.22166248,95239.0,95232.0,0.1743705]
[1739913851162,0.22166248,95239.0,95237.0,0.00257478]
[1739913851560,0.01356368,95239.0,95237.0,0.00257478]
[1739913851767,0.2100883,95244.0,95237.0,0.00257478]
[1739913852069,0.2100909,95243.0,95237.0,0.00257478]
[1739913852373,0.2100949,95241.0,95237.0,0.00257478]
[1739913852764,0.33548861,95247.0,95237.0,0.00257478]
[1739913853573,0.2100866,95245.0,95237.0,0.00257478]
[1739913853975,0.33548861,95247.0,95237.0,0.00257478]
[1739913854774,0.33548861,95247.0,95241.0,0.3608]
[1739913854967,0.33548861,95247.0,95245.0,0.2100852]
[1739913855167,0.33548861,95247.0,95241.0,0.3608]
[1739913855775,0.33648861,95247.0,95241.0,0.3608]
[1739913855972,0.001,95247.0,95245.0,0.2100849]
[1739913856278,0.001,95247.0,95241.0,0.3608]
[1739913856873,0.001,95247.0,95244.0,0.2100856]
[1739913857377,0.0001575,95248.0,95245.0,0.001]
[1739913857873,0.0001575,95248.0,95244.0,0.2100856]
[1739913858382,0.0001575,95248.0,95244.0,0.2110856]
[1739913858580,0.0001575,95248.0,95245.0,0.2100854]
[1739913858974,0.0001575,95248.0,95244.0,0.001]
[1739913858975,0.2100855,95245.0,95244.0,0.001]
[1739913859573,0.3003,95247.0,95244.0,0.001]
[1739913860081,0.2100855,95245.0,95244.0,0.001]
[1739913864278,0.3003,95247.0,95244.0,0.001]
[1739913864487,0.2100855,95245.0,95244.0,0.001]
[1739913864885,0.2100883,95244.0,95241.0,0.3608]
[1739913865186,0.2090883,95244.0,95241.0,0.3608]
[1739913865484,0.2100905,95243.0,95241.0,0.3608]
[1739913867686,0.2110905,95243.0,95241.0,0.3608]
[1739913868779,0.2100905,95243.0,95241.0,0.3608]
[1739913868987,0.2120905,95243.0,95241.0,0.3608]
[1739913869285,0.002,95243.0,95241.0,0.3608]
[1739913869478,0.11624,95242.0,95241.0,0.3608]
[1739913871980,0.3263321,95242.0,95241.0,0.3608]
[1739913873994,0.001,95242.0,95241.0,0.5708943]
[1739913875399,0.0001575,95248.0,95247.0,0.2100811]
[1739913876083,0.0001575,95248.0,95247.0,0.22367287]
[1739913876289,0.3103,95270.0,95247.0,0.01359177]
[1739913876596,0.64753928,95270.0,95261.0,0.3608]
[1739913876779,0.43750878,95270.0,95261.0,0.3608]
[1739913876980,0.45145194,95270.0,95263.0,0.2100451]
[1739913877192,0.66148294,95270.0,95263.0,0.2100451]
[1739913877587,0.45145194,95270.0,95261.0,0.3608]
[1739913877790,0.2100372,95267.0,95261.0,0.3608]
[1739913878690,0.45245194,95270.0,95261.0,0.3608]
[1739913878996,0.14215194,95270.0,95261.0,0.3608]
[1739913879297,0.001,95267.0,95261.0,0.3608]
[1739913879593,0.1162,95266.0,95261.0,0.3608]
[1739913880793,0.210048,95262.0,95261.0,0.3608]
[1739913881596,0.2100376,95267.0,95261.0,0.3608]
[1739913881898,0.001,95262.0,95261.0,0.3608]
[1739913884692,0.211048,95262.0,95261.0,0.3608]
[1739913885788,0.001,95262.0,95261.0,0.3608]
[1739913886096,0.001,95262.0,95261.0,0.5708502]
[1739913887291,0.00157531,95272.0,95271.0,0.2100282]
[1739913887498,0.00157531,95272.0,95271.0,0.5708282]
[1739913887794,5e-08,95290.0,95271.0,2.2156705]
[1739913887999,0.0001,95352.0,95309.0,0.3608]
[1739913888195,0.0001,95352.0,95351.0,0.209852]
[1739913888495,0.01390817,95352.0,95351.0,0.3608]
[1739913888796,0.0001,95352.0,95351.0,0.3608]
[1739913889388,0.01360895,95352.0,95351.0,0.3608]
[1739913889990,0.0001,95352.0,95351.0,0.3608]
[1739913890985,0.0001,95352.0,95351.0,0.3618]
[1739913891893,0.2098589,95348.0,95342.0,0.00015731]
[1739913892097,0.3608,95344.0,95342.0,0.00015731]
[1739913892288,0.2098696,95343.0,95342.0,0.00015731]
[1739913892493,0.5174696,95343.0,95342.0,0.00015731]
[1739913892802,0.3608,95344.0,95342.0,0.00015731]
[1739913893899,0.5706684,95344.0,95342.0,0.00115731]
[1739913895093,0.5726684,95344.0,95342.0,0.00115731]
[1739913896094,0.299,95343.0,95342.0,1e-08]
[1739913896303,0.2099004,95329.0,95328.0,0.3608]
[1739913897192,0.2098852,95336.0,95328.0,0.3608]
[1739913897387,0.00015668,95338.0,95328.0,0.3608]
[1739913897591,0.00015668,95338.0,95336.0,0.3608]
[1739913898402,0.00015668,95338.0,95336.0,0.570684]
[1739913899497,0.00015668,95338.0,95336.0,0.3608]
[1739913900196,0.00715668,95338.0,95336.0,0.36075496]
[1739913900591,0.21603818,95338.0,95336.0,0.36075496]
[1739913900796,0.00615668,95338.0,95321.0,0.1743705]
[1739913900998,0.2099158,95322.0,95321.0,0.1743705]
[1739913902103,0.12720878,95331.0,95321.0,0.1743705]
[1739913902104,0.21044431,95337.0,95321.0,0.5351705]
[1739913902299,0.2098843,95337.0,95321.0,0.5351705]
[1739913902609,0.00615668,95338.0,95336.0,0.3608]
[1739913902808,0.00615668,95338.0,95336.0,0.9314831]
[1739913903600,0.00015668,95338.0,95336.0,0.9314831]
[1739913904407,0.00615668,95338.0,95336.0,0.9314831]
[1739913904799,0.00615668,95338.0,95336.0,0.7216]
[1739913904999,0.00615668,95338.0,95337.0,0.2098828]
[1739913905200,0.00615668,95338.0,95336.0,0.72264]
[1739913905404,0.00615668,95338.0,95336.0,0.3608]
[1739913906112,0.36695668,95338.0,95320.0,0.3608]
[1739913906404,0.19841526,95329.0,95320.0,0.3608]
[1739913906801,0.2098891,95335.0,95320.0,0.3608]
[1739913907198,0.2098891,95335.0,95323.0,0.2099132]
[1739913907613,0.3648,95329.0,95319.0,0.00015731]
[1739913907807,0.5627,95328.0,95319.0,0.00015731]
[1739913908114,0.002,95335.0,95325.0,0.2099082]
[1739913908316,0.002,95335.0,95322.0,0.3608]
[1739913908504,0.116,95334.0,95323.0,0.2099132]
[1739913908703,0.002,95335.0,95330.0,0.3608]
[1739913908903,0.116,95334.0,95330.0,0.3608]
[1739913909311,0.2098954,95332.0,95330.0,0.3608]
[1739913910109,0.2099202,95320.0,95319.0,0.00015731]
[1739913911009,0.2099599,95302.0,95294.0,0.1743705]
[1739913911209,0.5707599,95302.0,95295.0,0.3608]
[1739913911512,0.5707599,95302.0,95294.0,0.1743705]
[1739913912009,0.2099753,95295.0,95294.0,0.1743705]
[1739913912410,0.22322202,95295.0,95293.0,0.18354735]
[1739913912710,0.3608,95294.0,95293.0,0.18354735]
[1739913913410,0.3598,95294.0,95293.0,0.18354735]
[1739913913811,0.3598,95294.0,95293.0,0.18454735]
[1739913914414,0.2099797,95293.0,95292.0,0.00015731]
[1739913914615,0.5304797,95293.0,95292.0,0.00015731]
[1739913915611,0.21757851,95294.0,95292.0,0.00015731]
[1739913915810,0.2099785,95294.0,95292.0,0.00015731]
[1739913916015,0.007,95294.0,95292.0,0.00015731]
[1739913916313,0.2099797,95293.0,95292.0,0.00015731]
[1739913916609,0.2169797,95293.0,95292.0,0.00015731]
[1739913917611,0.2099797,95293.0,95292.0,0.00015731]
[1739913918116,0.5707797,95293.0,95292.0,0.00015731]
[1739913918315,0.3608,95293.0,95275.0,0.3608]
[1739913918519,0.2100199,95275.0,95270.0,0.00157424]
[1739913918709,0.3608,95284.0,95270.0,0.00157424]
[1739913918908,0.2100203,95275.0,95270.0,0.00157424]
[1739913919113,0.2100276,95272.0,95270.0,0.00157424]
[1739913919512,0.0001574,95281.0,95270.0,0.00157424]
[1739913920417,0.2100201,95275.0,95270.0,0.00157424]
[1739913920813,0.0031574,95281.0,95270.0,0.00157424]
[1739913921210,0.2100228,95274.0,95270.0,0.00157424]
[1739913921411,0.210026,95272.0,95270.0,0.00157424]
[1739913921715,0.0031574,95281.0,95270.0,0.00157424]
[1739913921911,0.2100173,95276.0,95270.0,0.00157424]
[1739913922108,0.0031574,95281.0,95274.0,0.3608]
[1739913922424,0.0001574,95281.0,95280.0,0.2100083]
[1739913922817,0.3608,95304.0,95280.0,0.3]
[1739913923019,0.116,95311.0,95298.0,0.3608]
[1739913923222,0.116,95316.0,95313.0,0.209934]
[1739913923522,0.19035106,95323.0,95314.0,0.3608]
[1739913923821,0.01338695,95321.0,95307.0,0.2099488]
[1739913924120,0.19035106,95323.0,95307.0,0.2099488]
[1739913924712,0.2099177,95322.0,95307.0,0.2099488]
[1739913925319,0.01302717,95321.0,95306.0,0.3608]
[1739913925520,0.19035106,95316.0,95306.0,0.3608]
[1739913925713,0.0075748,95315.0,95306.0,0.3608]
[1739913925915,0.0075748,95315.0,95311.0,0.2099388]
[1739913926106,0.0075748,95315.0,95312.0,0.2099372]
[1739913926614,0.0015748,95315.0,95314.0,0.3608]
[1739913926821,0.003,95315.0,95314.0,0.3608]
[1739913928422,0.007,95315.0,95314.0,0.3608]
[1739913928624,0.007,95315.0,95306.0,0.3608]
[1739913928816,0.005,95315.0,95306.0,0.7451209]
[1739913929121,0.005,95315.0,95306.0,0.5351705]
[1739913929323,0.005,95315.0,95312.0,0.2099374]
[1739913929715,0.005,95315.0,95306.0,0.5351705]
[1739913929923,0.003,95315.0,95306.0,0.5351705]
[1739913931217,0.003,95315.0,95312.0,0.2099374]
[1739913931418,0.003,95315.0,95314.0,0.3608]
[1739913931921,0.22297114,95333.0,95318.0,0.2099241]
[1739913932117,0.22297114,95333.0,95322.0,0.3608]
[1739913932118,0.2098949,95332.0,95322.0,0.3608]
[1739913932425,0.5706962,95331.0,95322.0,0.3608]
[1739913932726,0.36136001,95331.0,95323.0,0.2099136]
[1739913933022,0.0031574,95324.0,95322.0,0.3608]
[1739913933522,0.0001574,95324.0,95322.0,0.3608]
[1739913933827,0.0041574,95324.0,95322.0,0.3608]
[1739913934417,0.0041574,95324.0,95323.0,0.2099136]
[1739913934617,0.209895,95332.0,95323.0,0.2099136]
[1739913934817,0.2098961,95331.0,95323.0,0.2099136]
[1739913935227,0.01288311,95333.0,95322.0,0.3608]
[1739913935520,0.2099007,95329.0,95322.0,0.3608]
[1739913935721,0.004,95324.0,95322.0,0.3608]
[1739913937115,0.11596,95327.0,95322.0,0.3608]
[1739913937319,0.004,95331.0,95330.0,0.2098982]
[1739913937521,0.004,95331.0,95330.0,0.5706982]
[1739913937918,0.00015679,95337.0,95336.0,0.209885]
[1739913938118,0.00015679,95337.0,95336.0,0.58408443]
[1739913938326,0.00015679,95337.0,95336.0,0.570685]
[1739913939927,0.00615679,95337.0,95336.0,0.571685]
[1739913940820,0.0001,95352.0,95336.0,0.3618]
[1739913941025,0.0001,95352.0,95351.0,0.570652]
[1739913941334,0.0001,95352.0,95351.0,0.3608]
[1739913942030,0.0001,95352.0,95351.0,0.570652]
[1739913942929,0.0071,95352.0,95351.0,0.58470402]
[1739913943532,2.0,95360.0,95359.0,0.2098344]
[1739913943730,2.0,95360.0,95359.0,0.5706344]
[1739913945831,2.0,95360.0,95359.0,0.5716344]
[1739913946233,2.0,95360.0,95359.0,0.3618]
[1739913946426,2.2098322,95360.0,95359.0,0.3618]
[1739913946728,2.2098322,95360.0,95359.0,0.5716344]
[1739913949438,2.0,95360.0,95359.0,0.5716344]
[1739913952037,2.0,95360.0,95359.0,0.3618]
[1739913952328,2.2098322,95360.0,95359.0,0.3618]
[1739913953326,2.2098322,95360.0,95359.0,0.5716344]
[1739913953828,2.0,95360.0,95359.0,0.5716344]
[1739913962627,0.85018444,95360.0,95359.0,0.5716344]
[1739913962829,0.46904964,95360.0,95359.0,1.4134049]
[1739913963438,2.00060001,95380.0,95379.0,0.2097904]
[1739913963629,2.0,95380.0,95379.0,0.9313904]
[1739913964337,2.2097882,95380.0,95379.0,0.7216]
[1739913965434,2.2097882,95380.0,95379.0,0.7226]
[1739913965832,2.0,95380.0,95379.0,0.94546599]
[1739913966647,2.2097882,95380.0,95379.0,0.94546599]
[1739913966831,2.2097882,95380.0,95379.0,0.7226]
[1739913967035,2.2097882,95380.0,95379.0,0.3221]
[1739913967844,2.2097882,95380.0,95371.0,0.1743705]
[1739913967845,0.2098058,95372.0,95371.0,0.5351705]
[1739913968042,0.2098081,95371.0,95370.0,0.00015731]
[1739913968341,0.653,95371.0,95350.0,0.30591225]
[1739913968642,0.2098521,95351.0,95350.0,0.30591225]
[1739913969438,0.2922,95353.0,95350.0,0.30591225]
[1739913970044,0.2922,95353.0,95352.0,0.3608]
[1739913970344,0.00015702,95360.0,95352.0,0.5706488]
[1739913972643,0.2098546,95350.0,95342.0,0.37323183]
[1739913972940,0.2098688,95344.0,95342.0,0.3608]
[1739913973532,0.2098718,95342.0,95341.0,0.00015731]
[1739913973736,0.3608,95345.0,95321.0,0.1743705]
[1739913973933,0.3608,95345.0,95330.0,0.12674075]
[1739913974538,0.3608,95345.0,95324.0,0.01245835]
[1739913974539,0.2098946,95332.0,95324.0,0.01245835]
[1739913974742,0.5264971,95331.0,95324.0,0.01245835]
[1739913974938,0.209906,95327.0,95321.0,0.17452781]
[1739913975547,0.2591,95330.0,95321.0,0.17452781]
[1739913976235,0.2099151,95323.0,95321.0,0.17452781]
[1739913976441,0.2099151,95323.0,95321.0,0.00015731]
[1739913976650,0.2089151,95323.0,95321.0,0.00015731]
[1739913976943,0.3033,95322.0,95321.0,0.00015731]
[1739913977246,0.3033,95322.0,95321.0,0.00315731]
[1739913977450,0.2099401,95311.0,95310.0,0.3670947]
[1739913977651,0.2069573,95304.0,95298.0,0.3608]
[1739913977852,0.2461,95303.0,95298.0,0.3608]
[1739913979246,0.2099709,95297.0,95296.0,0.00157379]
[1739913979849,0.2069709,95297.0,95296.0,0.00157379]
[1739913980055,0.2037259,95297.0,95296.0,0.00157379]
[1739913980254,0.2099649,95300.0,95296.0,0.00157379]
[1739913980446,0.2461,95303.0,95298.0,0.209967]
[1739913980755,0.2461,95303.0,95296.0,0.00557379]
[1739913980949,0.2461,95303.0,95299.0,0.2099651]
[1739913981147,0.631,95306.0,95296.0,0.00257379]
[1739913981148,0.30936001,95306.0,95296.0,0.00257379]
[1739913981348,0.0001574,95310.0,95309.0,0.2099444]
[1739913981856,0.0001574,95310.0,95309.0,1.7099444]
[1739913982152,0.0001574,95310.0,95309.0,0.2099444]
[1739913983051,0.0001574,95310.0,95309.0,1.0138149]
[1739913983752,0.14561696,95328.0,95323.0,0.2099127]
[1739913983953,0.57800001,95329.0,95324.0,0.3608]
[1739913984153,0.57800001,95329.0,95327.0,0.2099045]
[1739913984154,0.5774,95329.0,95327.0,0.2099045]
[1739913985449,0.787301,95329.0,95324.0,0.3608]
[1739913985860,0.001,95328.0,95324.0,0.3608]
[1739913986557,0.78786101,95329.0,95324.0,0.3608]
[1739913986757,0.787301,95329.0,95324.0,0.3608]
[1739913987259,0.002,95328.0,95324.0,0.3608]
[1739913987459,0.002,95328.0,95327.0,0.2099048]
[1739913988250,0.002,95329.0,95324.0,0.3608]
[1739913988451,0.002,95329.0,95328.0,0.2099026]
[1739913988651,0.002,95329.0,95328.0,0.5707026]
[1739913989059,0.002,95329.0,95328.0,0.7450731]
[1739913989261,0.0001574,95338.0,95337.0,0.2098828]
[1739913989462,0.0001574,95338.0,95337.0,0.5706828]
[1739913990465,0.0061574,95338.0,95337.0,0.5716828]
[1739913991053,0.0061574,95338.0,95337.0,0.5846284]
[1739913994162,0.0061574,95338.0,95337.0,0.7589989]
[1739913995365,0.0061574,95338.0,95337.0,0.7557539]
[1739913998771,0.216038,95338.0,95337.0,0.7557539]
[1739913999477,0.0061574,95338.0,95337.0,0.7557539]
[1739914000267,0.0061574,95338.0,95337.0,0.3852533]
[1739914000465,0.0061574,95338.0,95337.0,0.1753705]
[1739914000667,0.216038,95338.0,95337.0,0.1753705]
[1739914001365,0.22897696,95338.0,95337.0,0.1753705]
[1739914001561,0.216038,95338.0,95337.0,0.1753705]
[1739914003374,0.216038,95338.0,95337.0,0.001]
[1739914005771,0.2099004,95329.0,95328.0,0.3608]
[1739914006278,0.209885,95336.0,95318.0,0.3609574]
[1739914006475,0.2099224,95319.0,95318.0,0.3609574]
[1739914006870,0.4219956,95328.0,95318.0,0.3609574]
[1739914007081,0.2099127,95324.0,95318.0,0.3609574]
[1739914007281,0.2547,95323.0,95318.0,0.5708807]
[1739914007677,0.2547,95323.0,95318.0,0.3609574]
[1739914007877,0.3181,95322.0,95318.0,0.3609574]
[1739914008686,0.3181,95322.0,95320.0,0.20992]
[1739914008890,0.5280158,95322.0,95318.0,0.3609574]
[1739914009583,0.3181,95322.0,95318.0,0.3609574]
[1739914009786,0.5707224,95319.0,95318.0,0.0001574]
[1739914009980,0.0524812,95318.0,95306.0,0.3608]
[1739914010185,0.2099489,95307.0,95306.0,0.3608]
[1739914010688,0.3608,95307.0,95291.0,0.1743705]
[1739914010890,0.2099839,95292.0,95288.0,0.01266311]
[1739914011086,0.5707755,95295.0,95289.0,0.0001574]
[1739914011288,0.3092,95294.0,95289.0,0.0001574]
[1739914011486,0.3092,95294.0,95283.0,0.00157402]
[1739914011487,0.3092,95294.0,95288.0,0.2069015]
[1739914012388,0.3052,95294.0,95288.0,0.2099895]
[1739914012585,0.3052,95294.0,95289.0,0.2099875]
[1739914012989,0.3052,95294.0,95288.0,0.002]
[1739914013190,0.42088,95294.0,95288.0,0.002]
[1739914013693,0.42088,95294.0,95292.0,0.2099798]
[1739914013883,0.5151786,95294.0,95291.0,0.01290063]
[1739914014194,0.5151786,95294.0,95289.0,0.209988]
[1739914014688,0.5151786,95294.0,95289.0,0.211988]
[1739914015388,0.5151786,95294.0,95289.0,0.002]
[1739914015593,0.5151786,95294.0,95292.0,0.2099817]
[1739914016090,0.3052,95294.0,95289.0,0.002]
[1739914016284,0.2099824,95292.0,95289.0,0.2119875]
[1739914016483,0.2099863,95290.0,95289.0,0.002]
[1739914017396,0.2099794,95294.0,95292.0,0.2099814]
[1739914017590,0.3608,95295.0,95292.0,0.2109814]
[1739914017795,0.2099797,95293.0,95292.0,0.001]
[1739914018297,0.2099869,95290.0,95289.0,0.001]
[1739914018791,0.2099869,95290.0,95288.0,0.22252436]